[Event "Titled Tuesday Blitz January 31 Early 2023"]
[White "Svane, Rasmus"]
[Black "Taspinar, Yanki"]
[WhiteFideId "4657101"]
[BlackFideId "34561188"]
[WhiteElo "2623"]
[BlackElo "2262"]
[Result "1-0"]
[Round "02"]
[TimeControl "180+2"]
[Date "2023.01.31"]
[WhiteClock "0:00:40"]
[BlackClock "0:00:06"]

1. Nf3 {[%clk 0:03:00]}  Nf6 {[%clk 0:02:59]} 2. g3 {[%clk 0:03:01]}  g6 {[%clk 0:02:59]} 3. Bg2 {[%clk 0:03:01]}  Bg7 {[%clk 0:03:00]} 4. O-O {[%clk 0:03:02]}  O-O {[%clk 0:03:00]} 5. d4 {[%clk 0:03:03]}  d5 {[%clk 0:03:01]} 6. c4 {[%clk 0:03:03]}  c6 {[%clk 0:03:01]} 7. Qb3 {[%clk 0:03:03]}  dxc4 {[%clk 0:03:00]} 8. Qxc4 {[%clk 0:03:04]}  Be6 {[%clk 0:03:00]} 9. Qc2 {[%clk 0:03:04]}  h6 {[%clk 0:02:56]} 10. e4 {[%clk 0:03:03]}  Nbd7 {[%clk 0:02:54]} 11. Nc3 {[%clk 0:03:02]}  Rc8 {[%clk 0:02:47]} 12. h3 {[%clk 0:03:01]}  b5 {[%clk 0:02:43]} 13. Be3 {[%clk 0:02:59]}  Nb6 {[%clk 0:02:41]} 14. b3 {[%clk 0:02:57]}  Qc7 {[%clk 0:02:33]} 15. Rac1 {[%clk 0:02:54]}  Qb7 {[%clk 0:02:29]} 16. Rfd1 {[%clk 0:02:52]}  Rfd8 {[%clk 0:02:27]} 17. Ne2 {[%clk 0:02:52]}  g5 {[%clk 0:01:47]} 18. h4 {[%clk 0:02:50]}  Ng4 {[%clk 0:01:42]} 19. hxg5 {[%clk 0:02:12]}  Nxe3 {[%clk 0:01:42]} 20. fxe3 {[%clk 0:02:13]}  Bg4 {[%clk 0:01:42]} 21. Nh2 {[%clk 0:01:49]}  Qd7 {[%clk 0:01:33]} 22. gxh6 {[%clk 0:01:30]}  Bxh6 {[%clk 0:01:32]} 23. Kf2 {[%clk 0:01:30]}  Bh5 {[%clk 0:00:56]} 24. Bf3 {[%clk 0:01:12]}  Bxf3 {[%clk 0:00:38]} 25. Nxf3 {[%clk 0:01:13]}  Qg4 {[%clk 0:00:36]} 26. Rh1 {[%clk 0:01:11]}  Bg7 {[%clk 0:00:35]} 27. Rh4 {[%clk 0:01:09]}  Qd7 {[%clk 0:00:30]} 28. e5 {[%clk 0:01:10]}  f5 {[%clk 0:00:20]} 29. exf6 {[%clk 0:01:10]}  exf6 {[%clk 0:00:21]} 30. Qh7+ {[%clk 0:01:02]}  Kf8 {[%clk 0:00:22]} 31. Nf4 {[%clk 0:00:58]}  Qf7 {[%clk 0:00:19]} 32. Rg4 {[%clk 0:00:53]}  Qg8 {[%clk 0:00:08]} 33. Ne6+ {[%clk 0:00:41]}  Qxe6 {[%clk 0:00:08]} 34. Qxg7+ {[%clk 0:00:42]}  Ke8 {[%clk 0:00:08]} 35. Rh1 {[%clk 0:00:43]}  Qf7 {[%clk 0:00:06]} 36. Re4+ {[%clk 0:00:40]} 1-0


[Site "https://www.chess.com"]

[Event "Titled Tuesday Blitz January 31 Early 2023"]
[White "Shimanov, Aleksandr"]
[Black "Atakhan, Abtin"]
[WhiteFideId "4198603"]
[BlackFideId "22502203"]
[WhiteElo "2581"]
[BlackElo "2422"]
[Result "1-0"]
[Round "02"]
[TimeControl "180+2"]
[Date "2023.01.31"]
[WhiteClock "0:00:11"]
[BlackClock "0:00:04"]

1. e4 {[%clk 0:03:00]}  c5 {[%clk 0:02:59]} 2. d4 {[%clk 0:02:58]}  cxd4 {[%clk 0:03:00]} 3. Qxd4 {[%clk 0:02:59]}  Nc6 {[%clk 0:02:57]} 4. Qd3 {[%clk 0:02:59]}  d6 {[%clk 0:02:56]} 5. Nc3 {[%clk 0:02:59]}  g6 {[%clk 0:02:56]} 6. Nf3 {[%clk 0:02:59]}  Bg7 {[%clk 0:02:56]} 7. Be2 {[%clk 0:02:59]}  Nf6 {[%clk 0:02:56]} 8. O-O {[%clk 0:02:59]}  Bg4 {[%clk 0:02:52]} 9. Nd5 {[%clk 0:02:58]}  O-O {[%clk 0:02:51]} 10. c3 {[%clk 0:02:57]}  Rc8 {[%clk 0:02:36]} 11. Bg5 {[%clk 0:02:56]}  Bxf3 {[%clk 0:02:28]} 12. Qxf3 {[%clk 0:02:54]}  Ne5 {[%clk 0:02:25]} 13. Qe3 {[%clk 0:02:53]}  a6 {[%clk 0:01:42]} 14. Rad1 {[%clk 0:02:43]}  Re8 {[%clk 0:01:39]} 15. h4 {[%clk 0:02:40]}  Qa5 {[%clk 0:01:33]} 16. a3 {[%clk 0:02:37]}  Nc4 {[%clk 0:01:26]} 17. Bxc4 {[%clk 0:02:34]}  Rxc4 {[%clk 0:01:27]} 18. Bxf6 {[%clk 0:02:20]}  exf6 {[%clk 0:01:26]} 19. Qf3 {[%clk 0:02:03]}  Rcxe4 {[%clk 0:01:20]} 20. Nxf6+ {[%clk 0:02:02]}  Bxf6 {[%clk 0:01:21]} 21. Qxf6 {[%clk 0:02:03]}  R8e6 {[%clk 0:01:15]} 22. Qf3 {[%clk 0:01:51]}  Qb5 {[%clk 0:01:05]} 23. h5 {[%clk 0:01:36]}  gxh5 {[%clk 0:00:57]} 24. b4 {[%clk 0:01:20]}  h4 {[%clk 0:00:42]} 25. Rd3 {[%clk 0:01:15]}  Qe5 {[%clk 0:00:31]} 26. Rfd1 {[%clk 0:01:04]}  Rf6 {[%clk 0:00:31]} 27. Qh3 {[%clk 0:00:52]}  Re1+ {[%clk 0:00:30]} 28. Rxe1 {[%clk 0:00:52]}  Qxe1+ {[%clk 0:00:31]} 29. Kh2 {[%clk 0:00:53]}  Qxf2 {[%clk 0:00:29]} 30. Rd4 {[%clk 0:00:49]}  Rg6 {[%clk 0:00:18]} 31. Rxh4 {[%clk 0:00:39]}  Qd2 {[%clk 0:00:14]} 32. Qf3 {[%clk 0:00:26]}  Rh6 {[%clk 0:00:09]} 33. Qg3+ {[%clk 0:00:24]}  Kf8 {[%clk 0:00:07]} 34. c4 {[%clk 0:00:20]}  Rxh4+ {[%clk 0:00:03]} 35. Qxh4 {[%clk 0:00:21]}  h6 {[%clk 0:00:03]} 36. Qf6 {[%clk 0:00:18]}  Qe3 {[%clk 0:00:03]} 37. Qxd6+ {[%clk 0:00:18]}  Kg7 {[%clk 0:00:03]} 38. a4 {[%clk 0:00:18]}  Qc3 {[%clk 0:00:02]} 39. Qg3+ {[%clk 0:00:10]}  Qxg3+ {[%clk 0:00:01]} 40. Kxg3 {[%clk 0:00:11]}  Kf6 {[%clk 0:00:02]} 41. Kf4 {[%clk 0:00:11]}  Ke6 {[%clk 0:00:03]} 42. g4 {[%clk 0:00:07]}  a5 {[%clk 0:00:01]} 43. bxa5 {[%clk 0:00:06]}  Kd6 {[%clk 0:00:02]} 44. Kf5 {[%clk 0:00:07]}  Kc5 {[%clk 0:00:02]} 45. Kf6 {[%clk 0:00:07]}  Kxc4 {[%clk 0:00:02]} 46. Kxf7 {[%clk 0:00:08]}  Kb4 {[%clk 0:00:01]} 47. Kg6 {[%clk 0:00:09]}  Kxa5 {[%clk 0:00:02]} 48. Kxh6 {[%clk 0:00:09]}  Kxa4 {[%clk 0:00:02]} 49. g5 {[%clk 0:00:10]}  b5 {[%clk 0:00:03]} 50. g6 {[%clk 0:00:11]}  b4 {[%clk 0:00:04]} 51. g7 {[%clk 0:00:11]}  b3 {[%clk 0:00:04]} 52. g8=Q {[%clk 0:00:11]}  Ka3 {[%clk 0:00:05]} 53. Qf8+ {[%clk 0:00:11]}  Ka2 {[%clk 0:00:04]} 54. Qf7 {[%clk 0:00:11]} 1-0


[Site "https://www.chess.com"]

[Event "Titled Tuesday Blitz January 31 Early 2023"]
[White "Carnicelli, Valerio"]
[Black "Rasulov, Vugar"]
[WhiteFideId "856185"]
[BlackFideId "13402390"]
[WhiteElo "2370"]
[BlackElo "2523"]
[Result "0-1"]
[Round "02"]
[TimeControl "180+2"]
[Date "2023.01.31"]
[WhiteClock "0:00:39"]
[BlackClock "0:01:24"]

1. b3 {[%clk 0:03:00]}  e5 {[%clk 0:02:59]} 2. Bb2 {[%clk 0:03:01]}  Nc6 {[%clk 0:03:00]} 3. c4 {[%clk 0:03:00]}  g6 {[%clk 0:02:58]} 4. f4 {[%clk 0:02:58]}  Bg7 {[%clk 0:02:58]} 5. Nf3 {[%clk 0:02:58]}  d6 {[%clk 0:02:58]} 6. g3 {[%clk 0:02:50]}  Nge7 {[%clk 0:02:57]} 7. Bg2 {[%clk 0:02:50]}  O-O {[%clk 0:02:58]} 8. fxe5 {[%clk 0:02:47]}  dxe5 {[%clk 0:02:57]} 9. e4 {[%clk 0:02:07]}  Bg4 {[%clk 0:02:43]} 10. O-O {[%clk 0:02:07]}  Nd4 {[%clk 0:02:43]} 11. d3 {[%clk 0:02:00]}  Nec6 {[%clk 0:02:42]} 12. Nbd2 {[%clk 0:01:55]}  Qd6 {[%clk 0:02:39]} 13. h3 {[%clk 0:01:36]}  Bxf3 {[%clk 0:02:35]} 14. Nxf3 {[%clk 0:01:34]}  Rad8 {[%clk 0:02:35]} 15. Rf2 {[%clk 0:01:26]}  Nxf3+ {[%clk 0:02:18]} 16. Rxf3 {[%clk 0:01:27]}  f5 {[%clk 0:02:17]} 17. Qe2 {[%clk 0:01:18]}  Nd4 {[%clk 0:02:16]} 18. Qf2 {[%clk 0:01:07]}  Nxf3+ {[%clk 0:02:16]} 19. Qxf3 {[%clk 0:01:06]}  Qxd3 {[%clk 0:02:09]} 20. exf5 {[%clk 0:01:05]}  Qxf3 {[%clk 0:01:59]} 21. Bxf3 {[%clk 0:01:06]}  gxf5 {[%clk 0:01:59]} 22. Bxb7 {[%clk 0:01:03]}  Rd2 {[%clk 0:01:55]} 23. Bd5+ {[%clk 0:01:00]}  Kh8 {[%clk 0:01:54]} 24. Ba3 {[%clk 0:01:00]}  e4 {[%clk 0:01:46]} 25. Rf1 {[%clk 0:00:59]}  Rf6 {[%clk 0:01:33]} 26. Bc1 {[%clk 0:00:41]}  Rd3 {[%clk 0:01:32]} 27. Bf4 {[%clk 0:00:40]}  c6 {[%clk 0:01:32]} 28. Be5 {[%clk 0:00:38]}  cxd5 {[%clk 0:01:30]} 29. Bxf6 {[%clk 0:00:38]}  Bxf6 {[%clk 0:01:31]} 30. Rxf5 {[%clk 0:00:38]}  Bd4+ {[%clk 0:01:31]} 31. Kf1 {[%clk 0:00:39]}  dxc4 {[%clk 0:01:31]} 32. bxc4 {[%clk 0:00:39]}  Rxg3 {[%clk 0:01:25]} 33. Rf4 {[%clk 0:00:39]}  Rf3+ {[%clk 0:01:24]} 0-1


[Site "https://www.chess.com"]

[Event "Titled Tuesday Blitz January 31 Early 2023"]
[White "Mosadeghpour, Masoud"]
[Black "Aloma Vidal, Robert"]
[WhiteFideId "12519278"]
[BlackFideId "2260409"]
[WhiteElo "2472"]
[BlackElo "2442"]
[Result "1-0"]
[Round "02"]
[TimeControl "180+2"]
[Date "2023.01.31"]
[WhiteClock "0:01:06"]
[BlackClock "0:00:26"]

1. e4 {[%clk 0:03:00]}  e5 {[%clk 0:03:00]} 2. Nf3 {[%clk 0:03:00]}  Nf6 {[%clk 0:03:00]} 3. Nc3 {[%clk 0:02:59]}  Nc6 {[%clk 0:02:58]} 4. g3 {[%clk 0:02:59]}  Bc5 {[%clk 0:02:51]} 5. Bg2 {[%clk 0:02:59]}  d6 {[%clk 0:02:47]} 6. d3 {[%clk 0:02:59]}  a6 {[%clk 0:02:45]} 7. Be3 {[%clk 0:02:59]}  O-O {[%clk 0:02:39]} 8. h3 {[%clk 0:02:57]}  Bxe3 {[%clk 0:02:21]} 9. fxe3 {[%clk 0:02:58]}  d5 {[%clk 0:02:17]} 10. exd5 {[%clk 0:02:54]}  Nxd5 {[%clk 0:02:17]} 11. Nxd5 {[%clk 0:02:54]}  Qxd5 {[%clk 0:02:17]} 12. O-O {[%clk 0:02:55]}  Qc5 {[%clk 0:02:07]} 13. Qd2 {[%clk 0:02:51]}  h6 {[%clk 0:02:02]} 14. Kh2 {[%clk 0:02:51]}  Qb6 {[%clk 0:01:57]} 15. c3 {[%clk 0:02:49]}  e4 {[%clk 0:01:54]} 16. dxe4 {[%clk 0:02:48]}  Be6 {[%clk 0:01:51]} 17. Nd4 {[%clk 0:02:48]}  Rad8 {[%clk 0:01:51]} 18. Qf2 {[%clk 0:02:48]}  Ne5 {[%clk 0:01:47]} 19. Rad1 {[%clk 0:02:44]}  c5 {[%clk 0:01:46]} 20. Nf5 {[%clk 0:02:35]}  Nd3 {[%clk 0:01:37]} 21. Qe2 {[%clk 0:02:31]}  Qxb2 {[%clk 0:01:29]} 22. Rd2 {[%clk 0:02:15]}  Qxc3 {[%clk 0:01:26]} 23. Rfd1 {[%clk 0:02:10]}  c4 {[%clk 0:01:23]} 24. Nd4 {[%clk 0:01:53]}  b5 {[%clk 0:01:21]} 25. a4 {[%clk 0:01:42]}  b4 {[%clk 0:01:18]} 26. Rc2 {[%clk 0:01:41]}  Qa3 {[%clk 0:01:13]} 27. Nxe6 {[%clk 0:01:37]}  fxe6 {[%clk 0:01:08]} 28. Rxc4 {[%clk 0:01:38]}  Nb2 {[%clk 0:01:07]} 29. Rxd8 {[%clk 0:01:33]}  Rxd8 {[%clk 0:01:06]} 30. Rd4 {[%clk 0:01:31]}  Rxd4 {[%clk 0:00:57]} 31. exd4 {[%clk 0:01:32]}  b3 {[%clk 0:00:57]} 32. Qxa6 {[%clk 0:01:29]}  Nxa4 {[%clk 0:00:56]} 33. Qxe6+ {[%clk 0:01:29]}  Kh8 {[%clk 0:00:55]} 34. e5 {[%clk 0:01:22]}  Qa2 {[%clk 0:00:50]} 35. h4 {[%clk 0:01:21]}  Nc3 {[%clk 0:00:49]} 36. Qc8+ {[%clk 0:01:20]}  Kh7 {[%clk 0:00:46]} 37. Qxc3 {[%clk 0:01:21]}  b2 {[%clk 0:00:46]} 38. Be4+ {[%clk 0:01:21]}  Kg8 {[%clk 0:00:46]} 39. Qc8+ {[%clk 0:01:20]}  Kf7 {[%clk 0:00:47]} 40. e6+ {[%clk 0:01:13]}  Qxe6 {[%clk 0:00:37]} 41. Qxe6+ {[%clk 0:01:09]}  Kxe6 {[%clk 0:00:37]} 42. Kg2 {[%clk 0:01:10]}  g5 {[%clk 0:00:34]} 43. h5 {[%clk 0:01:09]}  b1=Q {[%clk 0:00:31]} 44. Bxb1 {[%clk 0:01:09]}  Kd5 {[%clk 0:00:32]} 45. Kf3 {[%clk 0:01:09]}  Kxd4 {[%clk 0:00:33]} 46. Bc2 {[%clk 0:01:06]}  Ke5 {[%clk 0:00:29]} 47. Ke3 {[%clk 0:01:06]}  Kd5 {[%clk 0:00:30]} 48. Bb3+ {[%clk 0:01:04]}  Ke5 {[%clk 0:00:31]} 49. g4 {[%clk 0:01:05]}  Kf6 {[%clk 0:00:28]} 50. Ke4 {[%clk 0:01:05]}  Kg7 {[%clk 0:00:26]} 51. Kf5 {[%clk 0:01:06]}  Kh7 {[%clk 0:00:26]} 52. Bc2 {[%clk 0:01:06]}  Kg7 {[%clk 0:00:26]} 53. Ke6 {[%clk 0:01:06]} 1-0


[Site "https://www.chess.com"]

[Event "Titled Tuesday Blitz January 31 Early 2023"]
[White "Domingo Nunez, Alejandro"]
[Black "Vokhidov, Shamsiddin"]
[WhiteFideId "22245561"]
[BlackFideId "14204223"]
[WhiteElo "2338"]
[BlackElo "2586"]
[Result "0-1"]
[Round "02"]
[TimeControl "180+2"]
[Date "2023.01.31"]
[WhiteClock "0:00:04"]
[BlackClock "0:00:49"]

1. e4 {[%clk 0:03:00]}  Nf6 {[%clk 0:02:57]} 2. e5 {[%clk 0:02:59]}  Nd5 {[%clk 0:02:58]} 3. c4 {[%clk 0:03:00]}  Nb6 {[%clk 0:02:58]} 4. d4 {[%clk 0:03:00]}  d6 {[%clk 0:02:58]} 5. f4 {[%clk 0:03:01]}  dxe5 {[%clk 0:02:58]} 6. fxe5 {[%clk 0:03:01]}  Nc6 {[%clk 0:02:58]} 7. Be3 {[%clk 0:02:55]}  Bf5 {[%clk 0:02:58]} 8. Nc3 {[%clk 0:02:53]}  e6 {[%clk 0:02:59]} 9. Nf3 {[%clk 0:02:51]}  Be7 {[%clk 0:02:57]} 10. Be2 {[%clk 0:02:50]}  f6 {[%clk 0:02:56]} 11. exf6 {[%clk 0:02:47]}  Bxf6 {[%clk 0:02:57]} 12. O-O {[%clk 0:02:48]}  Qd7 {[%clk 0:02:35]} 13. d5 {[%clk 0:02:08]}  Ne7 {[%clk 0:02:25]} 14. Nd4 {[%clk 0:02:05]}  O-O-O {[%clk 0:02:09]} 15. g4 {[%clk 0:00:44]}  exd5 {[%clk 0:01:27]} 16. c5 {[%clk 0:00:26]}  Nc4 {[%clk 0:01:16]} 17. Bxc4 {[%clk 0:00:25]}  Bxg4 {[%clk 0:01:11]} 18. Be2 {[%clk 0:00:20]}  Bh3 {[%clk 0:01:12]} 19. Rf3 {[%clk 0:00:19]}  Bg4 {[%clk 0:01:09]} 20. Rg3 {[%clk 0:00:19]}  Bxe2 {[%clk 0:01:08]} 21. Qxe2 {[%clk 0:00:19]}  Rde8 {[%clk 0:01:02]} 22. Qd3 {[%clk 0:00:19]}  Bxd4 {[%clk 0:00:59]} 23. Bxd4 {[%clk 0:00:19]}  Nf5 {[%clk 0:01:00]} 24. Rg2 {[%clk 0:00:18]}  Rhf8 {[%clk 0:00:58]} 25. Rd1 {[%clk 0:00:18]}  Nh4 {[%clk 0:00:55]} 26. Rg3 {[%clk 0:00:18]}  Qf7 {[%clk 0:00:53]} 27. Rf1 {[%clk 0:00:13]}  Qh5 {[%clk 0:00:53]} 28. Rxf8 {[%clk 0:00:04]}  Rxf8 {[%clk 0:00:54]} 29. Ne2 {[%clk 0:00:03]}  Nf3+ {[%clk 0:00:52]} 30. Kg2 {[%clk 0:00:04]}  Ne1+ {[%clk 0:00:49]} 0-1


[Site "https://www.chess.com"]

[Event "Titled Tuesday Blitz January 31 Early 2023"]
[White "Jianu, Vlad-Cristian"]
[Black "Hakobyan, Aram"]
[WhiteFideId "1208110"]
[BlackFideId "13306677"]
[WhiteElo "2504"]
[BlackElo "2608"]
[Result "0-1"]
[Round "02"]
[TimeControl "180+2"]
[Date "2023.01.31"]
[WhiteClock "0:00:46"]
[BlackClock "0:01:00"]

1. d4 {[%clk 0:03:00]}  Nf6 {[%clk 0:02:59]} 2. c4 {[%clk 0:03:00]}  g6 {[%clk 0:02:59]} 3. Nc3 {[%clk 0:02:58]}  Bg7 {[%clk 0:02:58]} 4. e4 {[%clk 0:02:57]}  d6 {[%clk 0:02:58]} 5. Nf3 {[%clk 0:02:56]}  O-O {[%clk 0:02:55]} 6. Be2 {[%clk 0:02:56]}  Bg4 {[%clk 0:02:54]} 7. Be3 {[%clk 0:02:49]}  Nbd7 {[%clk 0:02:53]} 8. O-O {[%clk 0:02:45]}  e5 {[%clk 0:02:52]} 9. d5 {[%clk 0:02:43]}  Bxf3 {[%clk 0:02:49]} 10. Bxf3 {[%clk 0:02:43]}  a5 {[%clk 0:02:50]} 11. a3 {[%clk 0:02:28]}  h5 {[%clk 0:02:37]} 12. b4 {[%clk 0:02:27]}  Kh7 {[%clk 0:02:37]} 13. Qd2 {[%clk 0:02:21]}  Ng8 {[%clk 0:02:33]} 14. c5 {[%clk 0:02:18]}  Bh6 {[%clk 0:02:33]} 15. cxd6 {[%clk 0:02:11]}  cxd6 {[%clk 0:02:33]} 16. Nb5 {[%clk 0:02:10]}  Bxe3 {[%clk 0:02:32]} 17. Qxe3 {[%clk 0:02:10]}  Qe7 {[%clk 0:02:31]} 18. Rac1 {[%clk 0:02:06]}  axb4 {[%clk 0:02:22]} 19. axb4 {[%clk 0:02:06]}  Ngf6 {[%clk 0:02:23]} 20. Rc7 {[%clk 0:02:01]}  Rfb8 {[%clk 0:02:22]} 21. Qg5 {[%clk 0:01:56]}  Qd8 {[%clk 0:02:17]} 22. Rfc1 {[%clk 0:01:51]}  Ra6 {[%clk 0:02:17]} 23. g3 {[%clk 0:01:45]}  Kg7 {[%clk 0:02:15]} 24. h4 {[%clk 0:01:39]}  Rb6 {[%clk 0:02:12]} 25. Na7 {[%clk 0:01:07]}  Rxb4 {[%clk 0:02:09]} 26. Rc8 {[%clk 0:01:07]}  Rxc8 {[%clk 0:02:01]} 27. Nxc8 {[%clk 0:01:04]}  Nc5 {[%clk 0:01:49]} 28. Na7 {[%clk 0:00:56]}  Qb6 {[%clk 0:01:36]} 29. Nc8 {[%clk 0:00:54]}  Qc7 {[%clk 0:01:27]} 30. Na7 {[%clk 0:00:54]}  Qb8 {[%clk 0:01:13]} 31. Qd2 {[%clk 0:00:52]}  Rb3 {[%clk 0:01:03]} 32. Bd1 {[%clk 0:00:46]}  Qxa7 {[%clk 0:01:00]} 0-1


[Site "https://www.chess.com"]

[Event "Titled Tuesday Blitz January 31 Early 2023"]
[White "Predke, Alexandr"]
[Black "Chor, Kevin"]
[WhiteFideId "24107581"]
[BlackFideId "2090740"]
[WhiteElo "2685"]
[BlackElo "1944"]
[Result "1/2-1/2"]
[Round "02"]
[TimeControl "180+2"]
[Date "2023.01.31"]
[WhiteClock "0:00:14"]
[BlackClock "0:00:30"]

1. d4 {[%clk 0:03:00]}  Nf6 {[%clk 0:03:00]} 2. Nf3 {[%clk 0:02:58]}  g6 {[%clk 0:03:00]} 3. Nbd2 {[%clk 0:02:56]}  Bg7 {[%clk 0:03:00]} 4. e4 {[%clk 0:02:55]}  d6 {[%clk 0:03:01]} 5. Bd3 {[%clk 0:02:51]}  O-O {[%clk 0:03:00]} 6. O-O {[%clk 0:02:51]}  Nbd7 {[%clk 0:03:01]} 7. a4 {[%clk 0:02:42]}  e5 {[%clk 0:02:58]} 8. dxe5 {[%clk 0:02:43]}  dxe5 {[%clk 0:02:58]} 9. b4 {[%clk 0:02:37]}  Nh5 {[%clk 0:02:57]} 10. Nb3 {[%clk 0:02:32]}  Nf4 {[%clk 0:02:57]} 11. a5 {[%clk 0:02:13]}  a6 {[%clk 0:02:51]} 12. Re1 {[%clk 0:02:11]}  Nf6 {[%clk 0:02:19]} 13. Bxf4 {[%clk 0:02:02]}  exf4 {[%clk 0:02:19]} 14. Qd2 {[%clk 0:01:50]}  Nh5 {[%clk 0:02:08]} 15. Rad1 {[%clk 0:01:47]}  Bg4 {[%clk 0:02:08]} 16. Nc5 {[%clk 0:01:30]}  Bxf3 {[%clk 0:02:02]} 17. gxf3 {[%clk 0:01:31]}  b6 {[%clk 0:01:56]} 18. Nb3 {[%clk 0:01:26]}  Qe7 {[%clk 0:01:49]} 19. c3 {[%clk 0:01:02]}  Rad8 {[%clk 0:01:47]} 20. Qc2 {[%clk 0:01:02]}  Qf6 {[%clk 0:01:36]} 21. e5 {[%clk 0:00:47]}  Qg5+ {[%clk 0:01:24]} 22. Kh1 {[%clk 0:00:47]}  Bxe5 {[%clk 0:01:25]} 23. Bxa6 {[%clk 0:00:45]}  Qf6 {[%clk 0:01:23]} 24. axb6 {[%clk 0:00:36]}  cxb6 {[%clk 0:01:07]} 25. c4 {[%clk 0:00:30]}  Bc3 {[%clk 0:01:07]} 26. Rxd8 {[%clk 0:00:23]}  Rxd8 {[%clk 0:01:08]} 27. Rd1 {[%clk 0:00:23]}  Bxb4 {[%clk 0:01:06]} 28. Rxd8+ {[%clk 0:00:14]}  Qxd8 {[%clk 0:01:07]} 29. Bb7 {[%clk 0:00:15]}  Ng7 {[%clk 0:01:02]} 30. Bd5 {[%clk 0:00:14]}  Nf5 {[%clk 0:01:00]} 31. Qe4 {[%clk 0:00:12]}  Bd6 {[%clk 0:00:48]} 32. Nd4 {[%clk 0:00:11]}  Nxd4 {[%clk 0:00:42]} 33. Qxd4 {[%clk 0:00:12]}  Bc5 {[%clk 0:00:43]} 34. Qd2 {[%clk 0:00:06]}  Qf6 {[%clk 0:00:39]} 35. Kg2 {[%clk 0:00:05]}  Kg7 {[%clk 0:00:39]} 36. Qe2 {[%clk 0:00:05]}  h5 {[%clk 0:00:39]} 37. h3 {[%clk 0:00:05]}  Qg5+ {[%clk 0:00:37]} 38. Kf1 {[%clk 0:00:04]}  Qf6 {[%clk 0:00:38]} 39. Kg2 {[%clk 0:00:04]}  Qa1 {[%clk 0:00:37]} 40. Qe8 {[%clk 0:00:03]}  Qf6 {[%clk 0:00:37]} 41. Qd7 {[%clk 0:00:04]}  Qe7 {[%clk 0:00:37]} 42. Qxe7 {[%clk 0:00:04]}  Bxe7 {[%clk 0:00:38]} 43. Kf1 {[%clk 0:00:03]}  f6 {[%clk 0:00:38]} 44. Ke2 {[%clk 0:00:03]}  g5 {[%clk 0:00:38]} 45. Bc6 {[%clk 0:00:03]}  f5 {[%clk 0:00:36]} 46. Bd7 {[%clk 0:00:02]}  Kf6 {[%clk 0:00:36]} 47. Be8 {[%clk 0:00:03]}  g4 {[%clk 0:00:34]} 48. fxg4 {[%clk 0:00:02]}  fxg4 {[%clk 0:00:33]} 49. hxg4 {[%clk 0:00:03]}  hxg4 {[%clk 0:00:30]} 50. f3 {[%clk 0:00:04]}  g3 {[%clk 0:00:28]} 51. Kf1 {[%clk 0:00:04]}  Ke5 {[%clk 0:00:29]} 52. Kg2 {[%clk 0:00:05]}  Kd4 {[%clk 0:00:29]} 53. Bb5 {[%clk 0:00:06]}  Ke3 {[%clk 0:00:29]} 54. Ba6 {[%clk 0:00:06]}  Bc5 {[%clk 0:00:29]} 55. Bb5 {[%clk 0:00:07]}  Ke2 {[%clk 0:00:29]} 56. Ba6 {[%clk 0:00:08]}  Kd3 {[%clk 0:00:29]} 57. Bb5 {[%clk 0:00:09]}  Kc3 {[%clk 0:00:29]} 58. Ba6 {[%clk 0:00:09]}  Kb4 {[%clk 0:00:30]} 59. Bb5 {[%clk 0:00:10]}  Ka5 {[%clk 0:00:30]} 60. Kf1 {[%clk 0:00:10]}  Kb4 {[%clk 0:00:30]} 61. Kg2 {[%clk 0:00:11]}  Kc3 {[%clk 0:00:30]} 62. Kf1 {[%clk 0:00:12]}  Kd3 {[%clk 0:00:30]} 63. Kg2 {[%clk 0:00:13]}  Kc2 {[%clk 0:00:30]} 64. Ba6 {[%clk 0:00:14]} 1/2-1/2


[Site "https://www.chess.com"]

[Event "Titled Tuesday Blitz January 31 Early 2023"]
[White "Mitrabha, Guha"]
[Black "Arabidze, Meri"]
[WhiteFideId "5057000"]
[BlackFideId "13604040"]
[WhiteElo "2507"]
[BlackElo "2441"]
[Result "1-0"]
[Round "02"]
[TimeControl "180+2"]
[Date "2023.01.31"]
[WhiteClock "0:01:20"]
[BlackClock "0:00:07"]

1. d4 {[%clk 0:03:00]}  f5 {[%clk 0:02:54]} 2. Nc3 {[%clk 0:03:00]}  Nf6 {[%clk 0:02:53]} 3. Bg5 {[%clk 0:02:59]}  d5 {[%clk 0:02:53]} 4. Bxf6 {[%clk 0:02:59]}  exf6 {[%clk 0:02:54]} 5. e3 {[%clk 0:02:59]}  c6 {[%clk 0:02:55]} 6. Bd3 {[%clk 0:02:59]}  Na6 {[%clk 0:02:54]} 7. a3 {[%clk 0:02:59]}  Nc7 {[%clk 0:02:51]} 8. Qf3 {[%clk 0:02:59]}  g6 {[%clk 0:02:50]} 9. h3 {[%clk 0:03:00]}  Ne6 {[%clk 0:02:43]} 10. g4 {[%clk 0:02:58]}  f4 {[%clk 0:02:43]} 11. exf4 {[%clk 0:02:49]}  Nxd4 {[%clk 0:02:37]} 12. Qe3+ {[%clk 0:02:30]}  Qe7 {[%clk 0:02:37]} 13. O-O-O {[%clk 0:02:26]}  Qxe3+ {[%clk 0:02:29]} 14. fxe3 {[%clk 0:02:27]}  Ne6 {[%clk 0:02:29]} 15. Nge2 {[%clk 0:02:28]}  Bc5 {[%clk 0:02:28]} 16. e4 {[%clk 0:02:28]}  Nxf4 {[%clk 0:02:19]} 17. Nxf4 {[%clk 0:02:27]}  Be3+ {[%clk 0:02:19]} 18. Kb1 {[%clk 0:02:27]}  Bxf4 {[%clk 0:02:20]} 19. exd5 {[%clk 0:02:28]}  Be5 {[%clk 0:02:13]} 20. dxc6 {[%clk 0:02:28]}  bxc6 {[%clk 0:02:03]} 21. Rhe1 {[%clk 0:02:26]}  O-O {[%clk 0:02:02]} 22. Ne4 {[%clk 0:02:21]}  Rb8 {[%clk 0:01:59]} 23. c3 {[%clk 0:02:21]}  f5 {[%clk 0:01:24]} 24. gxf5 {[%clk 0:02:21]}  Bxf5 {[%clk 0:01:23]} 25. Kc2 {[%clk 0:02:14]}  Bxh3 {[%clk 0:01:18]} 26. Rd2 {[%clk 0:01:38]}  Bf5 {[%clk 0:01:12]} 27. b4 {[%clk 0:01:34]}  Bf4 {[%clk 0:00:58]} 28. Rde2 {[%clk 0:01:29]}  h5 {[%clk 0:00:43]} 29. Nc5 {[%clk 0:01:23]}  Bxd3+ {[%clk 0:00:39]} 30. Nxd3 {[%clk 0:01:24]}  Rbd8 {[%clk 0:00:30]} 31. Re6 {[%clk 0:01:23]}  Kg7 {[%clk 0:00:25]} 32. Rg1 {[%clk 0:01:22]}  g5 {[%clk 0:00:13]} 33. Nxf4 {[%clk 0:01:22]}  Rxf4 {[%clk 0:00:14]} 34. Rxg5+ {[%clk 0:01:22]}  Kf7 {[%clk 0:00:15]} 35. Rxc6 {[%clk 0:01:23]}  Rf2+ {[%clk 0:00:11]} 36. Kb3 {[%clk 0:01:23]}  h4 {[%clk 0:00:09]} 37. Rh5 {[%clk 0:01:23]}  Rh2 {[%clk 0:00:08]} 38. Rh7+ {[%clk 0:01:22]}  Kg8 {[%clk 0:00:08]} 39. Rxa7 {[%clk 0:01:23]}  h3 {[%clk 0:00:08]} 40. Rg6+ {[%clk 0:01:24]}  Kh8 {[%clk 0:00:07]} 41. Rg4 {[%clk 0:01:22]}  Rh1 {[%clk 0:00:06]} 42. Ra5 {[%clk 0:01:22]}  Rd7 {[%clk 0:00:06]} 43. Rh4+ {[%clk 0:01:20]}  Rh7 {[%clk 0:00:06]} 44. Ra8+ {[%clk 0:01:20]}  Kg7 {[%clk 0:00:06]} 45. Ra7+ {[%clk 0:01:20]}  Kg6 {[%clk 0:00:07]} 46. Raxh7 {[%clk 0:01:20]} 1-0


[Site "https://www.chess.com"]